fUST/lending_fUST_20250108
["ID","MTS","AMOUNT","RATE_DAILY","PERIOD"]
[348110462,1736324841143,-178.3207069,0.0002021,2]
[348110463,1736324841167,-165.053092,0.00020414,2]
[348110464,1736324841197,-133.48794002,0.00020755,2]
[348110465,1736324851098,-1063.41205998,0.00020755,2]
[348110466,1736324851127,-205.826477,0.00021436,2]
[348110467,1736324851149,-847.93407973,0.000218,2]
[348110468,1736324851177,-152.06592027,0.000218,2]
[348110469,1736324851199,-1000.0,0.000218,3]
[348110470,1736324851220,-1000.0,0.000218,4]
[348110471,1736324851241,-155.31,0.000218,2]
[348110472,1736324851264,-499.449,0.000219,2]
[348110473,1736324851286,-300.0,0.00021913,2]
[348110474,1736324851309,-3951.0,0.00021914,2]
[348110475,1736324851331,-9178.65255261,0.00021915,2]
[348110477,1736324902787,502.22639786,0.000187,2]
[348110479,1736324916043,346.2173281,0.00019815,2]
[348110480,1736324917819,7689.16457726,0.00017,7]
[348110481,1736324922177,151.0472767,0.00025,120]
[348110533,1736325031961,-500.0,0.00021799,3]
[348110535,1736325031971,-696.9,0.0002198,7]
[348111020,1736325042596,-1500.0,0.000209,2]
[348111022,1736325042605,-535.92752794,0.0002198,7]
[348111042,1736325042773,-1472.76095206,0.0002198,7]
[348111347,1736325045850,-379.12874228,0.0002198,7]
[348111349,1736325045859,-247.96023174,0.00021998,2]
[348111351,1736325045869,-500.0,0.00022073,2]
[348111353,1736325045879,-1968.0,0.00022093,2]
[348111355,1736325045889,-500.0,0.00022094,3]
[348111357,1736325045898,-500.0,0.00022094,3]
[348111359,1736325045907,-500.0,0.00022094,3]
[348111361,1736325045917,-500.0,0.00022094,3]
[348111363,1736325045926,-500.0,0.00022094,3]
[348111365,1736325045934,-500.0,0.00022094,3]
[348111367,1736325045944,-500.0,0.00022094,3]
[348111369,1736325045953,-500.0,0.00022094,3]
[348111371,1736325045963,-500.0,0.00022094,3]
[348111373,1736325045972,-500.0,0.00022094,3]
[348111375,1736325045981,-500.0,0.00022094,3]
[348111377,1736325045991,-500.0,0.00022094,3]
[348111379,1736325046000,-500.0,0.00022094,3]
[348111381,1736325046010,-500.0,0.00022094,3]
[348111383,1736325046019,-500.0,0.00022094,3]
[348111385,1736325046028,-500.0,0.00022094,3]
[348111387,1736325046038,-500.0,0.00022094,3]
[348111388,1736325046047,-503.19054478,0.00022094,3]
[348111391,1736325046057,-500.0,0.00022094,3]
[348111392,1736325046068,-500.0,0.00022094,3]
[348111394,1736325046078,-500.0,0.00022094,3]
[348111396,1736325046087,-1000.0,0.00022094,7]
[348111399,1736325046097,-500.0,0.00022094,3]
[348111400,1736325046106,-500.0,0.00022094,3]
[348111402,1736325046115,-500.0,0.00022094,3]
[348111404,1736325046124,-500.0,0.00022094,3]
[348111406,1736325046134,-500.0,0.00022094,3]
[348111408,1736325046143,-500.78009486,0.00022094,3]
[348111410,1736325046153,-500.0,0.00022094,3]
[348111412,1736325046162,-500.0,0.00022094,3]
[348111414,1736325046172,-500.43789982,0.00022094,3]
[348111417,1736325046182,-500.0,0.00022094,3]
[348111418,1736325046194,-501.62436648,0.00022094,3]
[348111420,1736325046203,-502.00332987,0.00022094,3]
[348111423,1736325046213,-500.00000001,0.00022094,3]
[348111425,1736325046223,-500.0,0.00022094,3]
[348111427,1736325046233,-502.60548194,0.00022094,3]
[348111429,1736325046243,-500.0,0.00022094,3]
[348111431,1736325046252,-500.0,0.00022094,2]
[348111433,1736325046262,-500.0,0.00022094,3]
[348111435,1736325046273,-500.0,0.00022094,3]
[348111437,1736325046282,-504.27372914,0.00022094,3]
[348111438,1736325046291,-507.93205456,0.00022094,3]
[348111440,1736325046300,-500.0,0.00022094,3]
[348111442,1736325046309,-501.73142572,0.00022094,3]
[348111444,1736325046319,-157.71323284,0.00022094,2]
[348111446,1736325046328,-596.98278465,0.00022094,2]
[348111448,1736325046337,-500.0,0.00022094,2]
[348111450,1736325046347,-256.15838022,0.00022094,2]
[348111452,1736325046355,-500.28232457,0.00022095,3]
[348111454,1736325046365,-595.63183385,0.00022095,3]
[348111456,1736325046374,-500.0,0.00022095,3]
[348111458,1736325046384,-501.66860232,0.00022095,3]
[348111460,1736325046394,-504.06490718,0.00022095,3]
[348111463,1736325046409,-500.0,0.00022095,3]
[348111465,1736325046423,-502.10107078,0.00022095,3]
[348111467,1736325046434,-501.28899979,0.00022095,3]
[348111469,1736325046444,-500.0,0.00022095,3]
[348111471,1736325046454,-506.4551212,0.00022095,3]
[348111473,1736325046464,-500.0,0.00022095,3]
[348111475,1736325046474,-500.0,0.00022095,3]
[348111477,1736325046484,-505.74926296,0.00022095,3]
[348111480,1736325046494,-500.0,0.00022095,3]
[348111482,1736325046504,-500.0,0.00022095,3]
[348111484,1736325046514,-500.0,0.00022095,3]
[348111485,1736325046524,-506.20259335,0.00022095,3]
[348111487,1736325046534,-500.0,0.00022095,3]
[348111489,1736325046544,-500.0,0.00022095,3]
[348111491,1736325046553,-500.0,0.00022095,3]
[348111493,1736325046563,-500.0,0.00022095,3]
[348111496,1736325046573,-500.0,0.00022095,3]
[348111498,1736325046583,-500.0,0.00022095,3]
[348111500,1736325046593,-500.0,0.00022095,3]
[348111502,1736325046603,-500.0,0.00022095,3]
[348111504,1736325046612,-500.0,0.00022095,3]
[348111506,1736325046622,-500.0,0.00022095,3]
[348111508,1736325046632,-500.0,0.00022095,3]
[348111510,1736325046642,-500.0,0.00022095,3]
[348111512,1736325046651,-500.0,0.00022095,3]
[348111514,1736325046662,-500.0,0.00022095,3]
[348111516,1736325046671,-503.64926491,0.00022095,3]
[348111518,1736325046681,-500.0,0.00022095,3]
[348111520,1736325046691,-500.0,0.00022095,3]
[348111522,1736325046701,-500.0,0.00022095,3]
[348111524,1736325046711,-502.85372471,0.00022095,3]
[348111526,1736325046721,-500.0,0.00022095,3]
[348111528,1736325046730,-504.3240956,0.00022095,3]
[348111530,1736325046739,-500.0,0.00022095,3]
[348111532,1736325046751,-500.0,0.00022095,3]
[348111534,1736325046761,-535.83,0.00022095,3]
[348111536,1736325046770,-500.0,0.00022095,3]
[348111538,1736325046780,-500.40038115,0.00022095,3]
[348111540,1736325046790,-500.0,0.00022095,3]
[348111542,1736325046800,-500.0,0.00022095,3]
[348111544,1736325046810,-500.0,0.00022095,3]
[348111546,1736325046821,-500.0,0.00022095,3]
[348111548,1736325046830,-500.0,0.00022095,3]
[348111550,1736325046840,-500.0,0.00022095,3]
[348111552,1736325046850,-500.0,0.00022095,3]
[348111554,1736325046859,-500.0,0.00022095,3]
[348111556,1736325046870,-500.0,0.00022095,3]
[348111558,1736325046880,-500.0,0.00022095,3]
[348111561,1736325046890,-500.0,0.00022095,3]
[348111562,1736325046900,-500.0,0.00022095,3]
[348111565,1736325046910,-500.0,0.00022095,3]
[348111567,1736325046920,-505.85535658,0.00022095,3]
[348111568,1736325046929,-500.0,0.00022095,3]
[348111570,1736325046939,-500.0,0.00022095,3]
[348111572,1736325046948,-500.0,0.00022095,3]
[348111574,1736325046957,-500.0,0.00022095,3]
[348111576,1736325046966,-172.31578844,0.00022095,3]
[348111578,1736325046976,-500.0,0.00022095,3]
[348111580,1736325046985,-500.0,0.00022095,3]
[348111582,1736325046995,-508.59360297,0.00022095,3]
[348111584,1736325047004,-503.41181408,0.00022095,3]
[348111586,1736325047013,-500.0,0.00022095,3]
[348111588,1736325047023,-500.0,0.00022095,3]
[348111590,1736325047033,-500.0,0.00022095,3]
[348111592,1736325047043,-500.0,0.00022095,3]
[348111594,1736325047053,-500.0,0.00022095,3]
[348111596,1736325047062,-509.25563813,0.00022095,3]
[348111598,1736325047072,-500.0,0.00022095,3]
[348111600,1736325047081,-504.96388799,0.00022095,3]
[348111602,1736325047091,-500.0,0.00022095,3]
[348111604,1736325047100,-503.1661269,0.00022095,3]
[348111606,1736325047110,-500.0,0.00022095,3]
[348111608,1736325047119,-507.38027149,0.00022095,3]
[348111610,1736325047129,-503.22073834,0.00022095,3]
[348111612,1736325047138,-506.55415252,0.00022095,3]
[348111614,1736325047148,-505.15504651,0.00022095,3]
[348111617,1736325047158,-1616.98,0.00022095,3]
[348111619,1736325047167,-1616.98,0.00022095,3]
[348111621,1736325047177,-1616.98,0.00022095,3]
[348111622,1736325047187,-500.0,0.00022095,3]
[348111625,1736325047199,-500.0,0.00022095,3]
[348111627,1736325047209,-500.0,0.00022095,3]
[348111629,1736325047218,-500.0,0.00022095,3]
[348111631,1736325047227,-500.0,0.00022095,3]
[348111632,1736325047238,-4115.14,0.00022095,3]
[348111635,1736325047248,-506.90119185,0.00022095,3]
[348111637,1736325047258,-502.84533758,0.00022095,3]
[348111639,1736325047269,-500.0,0.00022095,3]
[348111641,1736325047278,-500.0,0.00022095,3]
[348111643,1736325047287,-500.0,0.00022095,3]
[348111645,1736325047296,-500.0,0.00022095,3]
[348111647,1736325047306,-500.0,0.00022095,3]
[348111649,1736325047316,-500.0,0.00022095,3]
[348111651,1736325047325,-500.0,0.00022095,3]
[348111653,1736325047335,-500.0,0.00022095,3]
[348111655,1736325047345,-500.0,0.00022095,3]
[348111657,1736325047355,-271.4833719,0.00022095,3]
[348111659,1736325047365,-500.0,0.00022095,3]
[348111661,1736325047374,-500.0,0.00022095,3]
[348111663,1736325047385,-503.39767878,0.00022095,3]
[348111665,1736325047394,-500.91162357,0.00022095,3]
[348111667,1736325047404,-500.0,0.00022095,3]
[348111669,1736325047414,-500.0,0.00022095,3]
[348111671,1736325047423,-500.0,0.00022095,3]
[348111673,1736325047433,-500.0,0.00022095,3]
[348111674,1736325047443,-502.35052806,0.00022095,3]
[348111676,1736325047453,-500.0,0.00022095,3]
[348111677,1736325047463,-500.0,0.00022095,3]
[348111679,1736325047473,-500.0,0.00022095,3]
[348111681,1736325047483,-500.0,0.00022095,3]
[348111683,1736325047492,-500.0,0.00022095,3]
[348111684,1736325047502,-500.0,0.00022095,3]
[348111686,1736325047512,-505.41595503,0.00022095,3]
[348111688,1736325047521,-508.25283379,0.00022095,3]
[348111690,1736325047532,-500.0,0.00022095,3]
[348111692,1736325047541,-500.0,0.00022095,3]
[348111693,1736325047551,-500.0,0.00022095,3]
[348111694,1736325047560,-500.0,0.00022095,3]
[348111695,1736325047570,-500.0,0.00022095,3]
[348111696,1736325047580,-501.05050117,0.00022095,3]
[348111697,1736325047590,-500.0,0.00022095,3]
[348111698,1736325047599,-501.25472959,0.00022095,3]
[348111699,1736325047609,-500.74648925,0.00022095,3]
[348111700,1736325047619,-500.57317291,0.00022095,3]
[348111701,1736325047629,-503.92706627,0.00022095,3]
[348111702,1736325047639,-500.0,0.00022095,3]
[348111703,1736325047650,-501.01424314,0.00022095,3]
[348111704,1736325047660,-620.32148649,0.00022095,3]
[348111705,1736325047670,-503.51754126,0.00022095,3]
[348111706,1736325047681,-42891.80630689,0.00022095,3]
[348111707,1736325047691,-34933.97401296,0.00022095,3]
[348111708,1736325047701,-501.01664635,0.00022096,3]
[348111709,1736325047710,-500.99824231,0.00022096,3]
[348111710,1736325047720,-504.94327403,0.00022096,3]
[348111711,1736325047730,-501.32049144,0.00022096,3]
[348111712,1736325047740,-501.77418877,0.00022096,3]
[348111713,1736325047750,-503.58115732,0.00022096,3]
[348111714,1736325047760,-502.05526635,0.00022096,3]
[348111715,1736325047771,-500.99278575,0.00022096,3]
[348111716,1736325047784,-502.76119709,0.00022096,3]
[348111717,1736325047797,-500.0,0.00022096,2]
[348111718,1736325047807,-501.62241406,0.00022096,3]
[348111719,1736325047817,-500.0,0.00022096,3]
[348111720,1736325047827,-501.50700894,0.00022096,3]
[348111721,1736325047837,-497.68624804,0.00022096,3]
[348111722,1736325047847,-500.0,0.00022096,3]
[348111723,1736325047857,-501.52143433,0.00022096,3]
[348111724,1736325047867,-500.84709384,0.00022096,3]
[348111725,1736325047877,-501.57256506,0.00022096,3]
[348111726,1736325047887,-502.67025443,0.00022096,3]
[348111727,1736325047898,-500.0,0.00022096,3]
[348111728,1736325047911,-502.0856804,0.00022096,3]
[348111729,1736325047922,-501.38031499,0.00022096,3]
[348111730,1736325047932,-502.42123091,0.00022096,3]
[348111731,1736325047943,-502.22424629,0.00022096,3]
[348111732,1736325047954,-523.19301844,0.00022096,3]
[348111733,1736325047964,-500.0,0.00022096,3]
[348111734,1736325047974,-500.73598521,0.00022096,3]
[348111735,1736325047984,-501.95011253,0.00022096,3]
[348111736,1736325047996,-502.09833786,0.00022096,3]
[348111737,1736325048006,-500.64217893,0.00022096,3]
[348111738,1736325048017,-500.0,0.00022096,3]
[348111739,1736325048027,-503.05276974,0.00022096,3]
[348111740,1736325048154,-500.0,0.00022096,3]
[348111741,1736325048165,-500.0,0.00022096,3]
[348111742,1736325048174,-500.0,0.00022096,3]
[348111743,1736325048184,-500.87320735,0.00022096,3]
[348111744,1736325048198,-500.0,0.00022096,3]
[348111745,1736325048207,-500.2292004,0.00022096,3]
[348111746,1736325048217,-500.0,0.00022096,3]
[348111747,1736325048226,-503.05760053,0.00022096,3]
[348111748,1736325048238,-500.0,0.00022096,3]
[348111749,1736325048248,-501.10114656,0.00022096,3]
[348111750,1736325048258,-201.33903156,0.00022096,3]
[348111751,1736325048271,-500.0,0.00022096,3]
[348111752,1736325048284,-501.1354387,0.00022096,3]
[348111754,1736325048294,-501.1881899,0.00022096,3]
[348111757,1736325048304,-501.62624665,0.00022096,3]
[348111758,1736325048315,-500.0,0.00022096,3]
[348111760,1736325048325,-500.0,0.00022096,3]
[348111762,1736325048335,-501.06357779,0.00022096,3]
[348111763,1736325048345,-500.61420356,0.00022096,3]
[348111765,1736325048355,-500.0,0.00022096,3]
[348111767,1736325048365,-500.28079999,0.00022096,3]
[348111769,1736325048375,-502.30278602,0.00022096,3]
[348111771,1736325048385,-501.07231734,0.00022096,3]
[348111773,1736325048395,-500.47842196,0.00022096,3]
[348111774,1736325048405,-500.40346909,0.00022096,3]
[348111775,1736325048415,-500.57339852,0.00022096,3]
[348111777,1736325048425,-501.27204527,0.00022096,3]
[348111779,1736325048435,-500.0,0.00022096,3]
[348111781,1736325048444,-502.24606165,0.00022096,3]
[348111782,1736325048454,-501.60253288,0.00022096,3]
[348111784,1736325048464,-501.2604454,0.00022096,3]
[348111786,1736325048474,-500.84737941,0.00022096,3]
[348111788,1736325048483,-223.78960564,0.00022096,3]
[348111790,1736325048493,-500.0,0.00022096,3]
[348111791,1736325048503,-500.0,0.00022096,3]
[348111793,1736325048513,-500.0,0.00022096,3]
[348111794,1736325048523,-502.79663442,0.00022096,3]
[348111795,1736325048534,-501.10151777,0.00022096,3]
[348111796,1736325048546,-500.0,0.00022096,3]
[348111797,1736325048555,-500.0,0.00022096,3]
[348111798,1736325048565,-500.0,0.00022096,3]
[348111799,1736325048576,-500.0,0.00022096,3]
[348111800,1736325048586,-505.25193928,0.00022096,3]
[348111801,1736325048596,-530.8294131,0.00022096,3]
[348111803,1736325048606,-500.99155846,0.00022096,3]
[348111804,1736325048617,-500.0,0.00022096,3]
[348111806,1736325048626,-500.0,0.00022096,3]
[348111807,1736325048637,-501.41122716,0.00022096,3]
[348111809,1736325048648,-500.58022566,0.00022096,3]
[348111811,1736325048658,-500.0,0.00022096,3]
[348111813,1736325048668,-502.4697916,0.00022096,3]
[348111815,1736325048678,-500.7919803,0.00022096,3]
[348111817,1736325048688,-500.98796617,0.00022096,3]
[348111819,1736325048698,-500.83900968,0.00022096,3]
[348111821,1736325048707,-500.0,0.00022096,3]
[348111822,1736325048716,-500.0,0.00022096,3]
[348111824,1736325048726,-500.0,0.00022096,3]
[348111826,1736325048735,-501.46445484,0.00022096,3]
[348111828,1736325048744,-502.44011515,0.00022096,3]
[348111829,1736325048754,-500.0,0.00022096,3]
[348111830,1736325048763,-500.0,0.00022096,3]
[348111831,1736325048773,-500.0,0.00022096,3]
[348111832,1736325048784,-501.65408903,0.00022096,3]
[348111833,1736325048794,-503.99383261,0.00022096,3]
[348111834,1736325048803,-500.0,0.00022096,3]
[348111835,1736325048813,-502.88383034,0.00022096,3]
[348111836,1736325048823,-501.32361236,0.00022096,3]
[348111837,1736325048833,-500.0,0.00022096,3]
[348111838,1736325048842,-502.43127271,0.00022096,3]
[348111839,1736325048852,-500.0,0.00022096,3]
[348111840,1736325048862,-500.90341092,0.00022096,3]
[348111841,1736325048871,-503.38807562,0.00022096,3]
[348111842,1736325048881,-500.4951071,0.00022096,3]
[348111843,1736325048891,-501.03206053,0.00022096,3]
[348111844,1736325048901,-493.77677566,0.00022096,3]
[348111846,1736325048910,-501.49304894,0.00022096,3]
[348111848,1736325048921,-505.02264816,0.00022096,3]
[348111850,1736325048931,-501.61887366,0.00022096,3]
[348111852,1736325048941,-500.0,0.00022096,3]
[348111854,1736325048952,-500.0,0.00022096,3]
[348111856,1736325048962,-504.16069208,0.00022096,3]
[348111858,1736325048972,-501.72253438,0.00022096,3]
[348111859,1736325048982,-500.0,0.00022096,3]
[348111861,1736325048992,-501.70471025,0.00022096,3]
[348111863,1736325049002,-500.0,0.00022096,3]
[348111864,1736325049013,-504.25191795,0.00022096,3]
[348111866,1736325049026,-500.0,0.00022096,3]
[348111868,1736325049038,-419.3642395,0.00022096,3]
[348111870,1736325049049,-313.6171515,0.00022096,3]
[348111872,1736325049058,-504.80690752,0.00022096,3]
[348111873,1736325049068,-500.0,0.00022096,3]
[348111875,1736325049078,-500.0,0.00022096,3]
[348111877,1736325049087,-500.0,0.00022096,3]
[348111879,1736325049097,-353.27916133,0.00022096,3]
[348111880,1736325049107,-500.0,0.00022096,3]
[348111882,1736325049117,-509.0451226,0.00022096,3]
[348111884,1736325049127,-500.0,0.00022096,3]
[348111885,1736325049137,-500.2959187,0.00022096,3]
[348111886,1736325049147,-513.1479479,0.00022096,3]
[348111887,1736325049157,-510.85549808,0.00022096,3]
[348111889,1736325049167,-500.0,0.00022096,3]
[348111891,1736325049176,-503.78628791,0.00022096,3]
[348111893,1736325049186,-504.3902789,0.00022096,3]
[348111895,1736325049199,-500.0,0.00022096,3]
[348111897,1736325049209,-500.0,0.00022096,3]
[348111898,1736325049219,-500.0,0.00022096,3]
[348111900,1736325049231,-500.0,0.00022096,3]
[348111901,1736325049241,-503.24734715,0.00022096,3]
[348111902,1736325049251,-513.97212367,0.00022096,3]
[348111903,1736325049261,-500.0,0.00022096,3]
[348111904,1736325049273,-500.0,0.00022096,3]
[348111905,1736325049284,-501.76978869,0.00022096,3]
[348111906,1736325049293,-500.0,0.00022096,3]
[348111907,1736325049303,-500.0,0.00022096,3]
[348111908,1736325049313,-484.9538738,0.00022096,3]
[348111909,1736325049323,-518.26585458,0.00022096,3]
[348111910,1736325049332,-500.0,0.00022096,3]
[348111911,1736325049342,-502.98697505,0.00022096,3]
[348111912,1736325049351,-500.0,0.00022096,3]
[348111913,1736325049361,-500.0,0.00022096,3]
[348111914,1736325049371,-500.0,0.00022096,3]
[348111915,1736325049381,-500.0,0.00022096,3]
[348111916,1736325049391,-501.22035504,0.00022096,3]
[348111917,1736325049400,-504.21410707,0.00022096,3]
[348111918,1736325049410,-500.0,0.00022096,3]
[348111919,1736325049420,-500.0,0.00022096,3]
[348111920,1736325049430,-503.73908003,0.00022096,3]
[348111921,1736325049441,-500.0,0.00022096,3]
[348111922,1736325049451,-500.0,0.00022096,3]
[348111923,1736325049460,-500.0,0.00022096,3]
[348111924,1736325049470,-500.69334496,0.00022096,3]
[348111925,1736325049480,-524.21136248,0.00022096,3]
[348111926,1736325049489,-506.76417855,0.00022096,3]
[348111927,1736325049499,-501.34895046,0.00022096,3]
[348111928,1736325049509,-510.46628294,0.00022096,3]
[348111929,1736325049519,-501.29974213,0.00022096,3]
[348111930,1736325049528,-500.0,0.00022096,3]
[348111932,1736325049539,-253.96309548,0.00022096,3]
[348111934,1736325049549,-504.04040849,0.00022096,3]
[348111936,1736325049559,-502.06731814,0.00022096,3]
[348111938,1736325049568,-502.41287424,0.00022096,3]
[348111940,1736325049578,-503.22729174,0.00022096,3]
[348111942,1736325049587,-503.27456189,0.00022096,3]
[348111944,1736325049596,-500.0,0.00022096,3]
[348111945,1736325049606,-500.0,0.00022096,3]
[348111947,1736325049615,-500.0,0.00022096,3]
[348111949,1736325049625,-500.0,0.00022096,3]
[348111951,1736325049635,-501.45938354,0.00022096,3]
[348111953,1736325049644,-500.0,0.00022096,3]
[348111954,1736325049653,-500.0,0.00022096,3]
[348111956,1736325049662,-501.85107427,0.00022096,3]
[348111958,1736325049672,-504.51873845,0.00022096,3]
[348111960,1736325049681,-500.0,0.00022096,3]
[348111962,1736325049691,-500.0,0.00022096,5]
[348111964,1736325049700,-500.0,0.00022096,3]
[348111966,1736325049710,-500.0,0.00022096,3]
[348111967,1736325049719,-500.95509965,0.00022096,3]
[348111969,1736325049729,-502.78093263,0.00022096,3]
[348111971,1736325049738,-500.0,0.00022096,3]
[348111972,1736325049748,-500.0,0.00022096,3]
[348111973,1736325049757,-502.20027122,0.00022096,3]
[348111974,1736325049766,-502.18273555,0.00022096,3]
[348111975,1736325049775,-500.47507707,0.00022096,3]
[348111976,1736325049786,-500.0,0.00022096,3]
[348111977,1736325049796,-501.9273105,0.00022096,3]
[348111978,1736325049805,-501.71643778,0.00022096,3]
[348111979,1736325049815,-408.46984797,0.00022096,3]
[348111980,1736325049823,-504.17055655,0.00022096,3]
[348111981,1736325049833,-502.61829517,0.00022096,3]
[348111982,1736325049842,-501.22311922,0.00022096,3]
[348111983,1736325049851,-500.0,0.00022096,3]
[348111984,1736325049861,-500.0,0.00022096,3]
[348111985,1736325049870,-500.0,0.00022096,3]
[348111986,1736325049879,-500.0,0.00022096,3]
[348111987,1736325049888,-501.88078831,0.00022096,3]
[348111988,1736325049897,-502.31062935,0.00022096,3]
[348111989,1736325049906,-500.0,0.00022096,3]
[348111990,1736325049916,-500.93263661,0.00022096,3]
[348111991,1736325049926,-500.0,0.00022096,3]
[348111992,1736325049936,-500.34067484,0.00022096,3]
[348111993,1736325049945,-500.0,0.00022096,3]
[348111994,1736325049955,-500.0,0.00022096,3]
[348111995,1736325049964,-500.0,0.00022096,3]
[348111996,1736325049973,-506.32013912,0.00022096,3]
[348111997,1736325049982,-500.0,0.00022096,3]
[348111998,1736325049992,-500.0,0.00022096,3]
[348111999,1736325050003,-501.25048864,0.00022096,3]
[348112000,1736325050013,-501.10364396,0.00022096,3]
[348112001,1736325050023,-500.0,0.00022096,3]
[348112002,1736325050033,-500.0,0.00022096,3]
[348112003,1736325050043,-500.2321362,0.00022096,3]
[348112004,1736325050053,-371.69051342,0.00022096,3]
[348112005,1736325050063,-502.5073925,0.00022096,3]
[348112006,1736325050073,-500.0,0.00022096,3]
[348112007,1736325050083,-502.49615994,0.00022096,3]
[348112008,1736325050093,-500.0,0.00022096,3]
[348112009,1736325050103,-501.66624556,0.00022096,3]
[348112010,1736325050112,-500.0,0.00022096,3]
[348112011,1736325050122,-500.0,0.00022096,3]
[348112012,1736325050132,-502.50184499,0.00022096,3]
[348112013,1736325050143,-502.14443904,0.00022096,3]
[348112014,1736325050152,-500.0,0.00022096,3]
[348112015,1736325050162,-501.86291132,0.00022096,3]
[348112016,1736325050242,-500.0,0.00022096,3]
[348112017,1736325050252,-500.0,0.00022096,3]
[348112018,1736325050263,-501.85008877,0.00022096,3]
[348112019,1736325050272,-527.7355375,0.00022096,3]
[348112020,1736325050281,-501.35678864,0.00022096,3]
[348112021,1736325050291,-505.3149039,0.00022096,3]
[348112022,1736325050300,-501.78094948,0.00022096,3]
[348112023,1736325050310,-500.0,0.00022096,3]
[348112024,1736325050320,-503.68307024,0.00022096,3]
[348112025,1736325050330,-500.0,0.00022096,3]
[348112026,1736325050340,-502.67617975,0.00022096,3]
[348112027,1736325050349,-502.64942134,0.00022096,3]
[348112028,1736325050359,-501.22316456,0.00022096,3]
[348112029,1736325050369,-502.02685271,0.00022096,3]
[348112030,1736325050379,-501.40466113,0.00022096,3]
[348112031,1736325050389,-617.44199398,0.00022096,3]
[348112032,1736325050399,-500.0,0.00022096,3]
[348112033,1736325050409,-503.64094919,0.00022096,3]
[348112034,1736325050418,-500.53495956,0.00022096,3]
[348112036,1736325050428,-500.0,0.00022096,3]
[348112037,1736325050437,-501.09861505,0.00022096,3]
[348112038,1736325050446,-500.0,0.00022096,3]
[348112040,1736325050455,-1000.24179626,0.00022096,3]
[348112042,1736325050464,-502.52385123,0.00022096,3]
[348112044,1736325050473,-500.0,0.00022096,2]
[348112045,1736325050483,-500.0,0.00022096,3]
[348112047,1736325050492,-500.95972459,0.00022096,3]
[348112049,1736325050502,-500.0,0.00022096,3]
[348112051,1736325050511,-500.0,0.00022096,3]
[348112053,1736325050521,-501.61237042,0.00022096,3]
[348112054,1736325050533,-500.0,0.00022096,3]
[348112056,1736325050543,-188.0,0.00022096,2]
[348112058,1736325050553,-502.29855832,0.00022096,3]
[348112060,1736325050562,-303.47131887,0.00022096,3]
[348112061,1736325050572,-438.52730633,0.00022096,3]
[348112062,1736325050581,-503.68500097,0.00022096,3]
[348112063,1736325050590,-501.10160758,0.00022096,3]
[348112064,1736325050599,-502.3578938,0.00022096,3]
[348112065,1736325050608,-500.0,0.00022096,3]
[348112066,1736325050617,-501.51202973,0.00022096,3]
[348112067,1736325050627,-501.58399977,0.00022096,3]
[348112068,1736325050637,-500.0,0.00022096,3]
[348112069,1736325050646,-500.0,0.00022096,3]
[348112070,1736325050655,-503.04140799,0.00022096,3]
[348112071,1736325050665,-503.16885333,0.00022096,3]
[348112072,1736325050675,-500.0,0.00022096,3]
[348112073,1736325050684,-501.63335731,0.00022096,3]
[348112074,1736325050694,-502.13930557,0.00022096,3]
[348112075,1736325050704,-503.01855584,0.00022096,3]
[348112076,1736325050713,-500.0,0.00022096,3]
[348112077,1736325050723,-503.00402007,0.00022096,3]
[348112078,1736325050733,-500.76420032,0.00022096,3]
[348112079,1736325050742,-500.99514447,0.00022096,3]